Cogmind - Beta 17 @@@ ROGUE MODE // 2026.07.10 @ 10:44:08 Player: puppuppit Result: Destroyed by as-52016 with Assembled F-torch Performance ------------- Evolutions (0) 0 Regions Visited (2) 400 Robots Destroyed (39) 195 Value Destroyed (741) 741 Prototype IDs (2) 40 Alien Tech Used (0) 0 Bonus (0) 0 TOTAL SCORE: 1376 Bonus ------- None Cogmind --------- Core Integrity 0/250 Matter 245/300 Energy 100/100 System Corruption 2% Temperature Warning (391) Movement Treading (320) Ox2 Location -10/Mines Parts ------- > --- POWER (1) -------- (None) > --- PROPULSION (2) --- Light Treads > --- UTILITY (2) ------ High-capacity Storage Unit > --- WEAPON (2) ------- Grenade Launcher > --- INVENTORY (20) --- Compact Wheel Heat Sink Heat Sink High-capacity Battery (250) High-capacity Battery (250) Small Matter Pod (50) Large Matter Pod (150) Machine Analyzer Improved Terrain Scanner Light Armor Plating Hacking Suite Medium Laser Beam Cannon Beam Cannon Assault Rifle Light Assault Rifle Light Assault Rifle Light Assault Rifle Mining Laser Peak State ------------ > --- POWER ------------ Ion Engine > --- PROPULSION ------- Light Treads Compact Wheel > --- UTILITY ---------- High-capacity Storage Unit Improved Terrain Scanner > --- WEAPON ----------- Medium Laser Light Assault Rifle > --- INVENTORY -------- Ion Engine Ion Engine Light Ion Engine Compact Wheel Flight Unit Heat Sink Small Storage Unit Small Matter Pod Machine Analyzer Light Armor Plating Beam Cannon Beam Cannon Beam Cannon Assault Rifle Light Assault Rifle Light Assault Rifle Light Assault Rifle Mining Laser [Rating: 11] Favorites ----------- Power Ion Engine Engine Ion Engine Propulsion Light Treads Treads Light Treads Wheel Compact Wheel Utility High-capacity Storage Unit Device Improved Terrain Scanner Storage High-capacity Storage Unit Weapon Beam Cannon Energy Gun EM Pulse Gun Energy Cannon Beam Cannon Ballistic Gun Light Assault Rifle Launcher Grenade Launcher Build | -11 -10 -10 ------- Run | Yrd Mat Min Slots Evolved . | . . . Power . | . . . Propulsion . | . . . Utility . | . . . Weapon . | . . . Parts Attached 19 | 8 8 3 Power 4 | 2 1 1 Engine 4 | 2 1 1 Core . | . . . Reactor . | . . . Propulsion 4 | 2 2 . Treads 3 | 2 1 . Leg . | . . . Wheel 1 | . 1 . Hover . | . . . Flight . | . . . Utility 4 | 2 1 1 Device 2 | 1 . 1 Storage 2 | 1 1 . Processor . | . . . Hackware . | . . . Protection . | . . . Artifact . | . . . Weapon 7 | 2 4 1 Energy Gun 2 | 1 1 . Energy Cannon 2 | . 2 . Ballistic Gun 1 | 1 . . Ballistic Cannon . | . . . Launcher 2 | . 1 1 Special Weapon . | . . . Impact Weapon . | . . . Slashing Weapon . | . . . Piercing Weapon . | . . . Special Melee Weapon . | . . . Unidentified Prototypes . | . . . Parts Lost 8 | . 3 5 Power 2 | . . 2 Propulsion 2 | . 1 1 Utility 1 | . . 1 Weapon 3 | . 2 1 Highest Loss Streak 5 | . 1 5 To Critical Strikes 1 | . 1 . Average Backups 13 | 1 14 19 Power 1 | . 1 . Propulsion . | . . 1 Utility 5 | . 5 10 Weapon 6 | . 6 8 Tool/Special . | . . . Unused Backups 16 | . 1 15 Power . | . . . Propulsion 2 | . 1 1 Utility 8 | . . 8 Weapon 6 | . . 6 Tool/Special . | . . . Average Slot Usage (%) 99 | . 99 95 Engine 14 | . 14 14 Treads 25 | . 25 25 Wheel 1 | . 1 . Device 13 | . 14 12 Storage 14 | . 14 14 Energy Gun 8 | . 9 . Energy Cannon 10 | . 9 25 Ballistic Gun 8 | . 9 . Peak Build Rating 11 | 9 11 11 Average Rating 9 | 5 10 10 On Entrance 6 | . 9 11 Avg Prop Armor Cover (%) 14 | . 14 . Naked Turns . | . . . Heaviest Build 52 | 14 52 52 Greatest Support 40 | 40 40 40 Greatest Overweight (x) 3 | . 3 1 Average Overweight (x) 1 | . 1 1 Largest Inventory Capacity 20 | 8 20 20 Average Capacity 18 | 7 19 20 Most Carried 20 | 3 20 20 Average Carried 13 | 1 14 19 Final Capacity 20 | 8 20 20 Final Carried 20 | 3 20 19 Class Distribution -------------------- 100% | Mutant Dominant Class ---------------- Mutant | -10/Materials Mutant | -10/Mines Resources | -11 -10 -10 ----------- Run | Yrd Mat Min Matter Collected 725 | 229 478 18 Remotely . | . . . Salvage Created 1254 | 157 1076 21 Parts 76 | 12 64 . Haulers Intercepted 2 | . 2 . Recyclers Shooed . | . . . Parts Field Recycled . | . . . Retrieved Matter . | . . . Parts Self-Destructed . | . . . Prevented . | . . . Parts Restored . | . . . Kills | -11 -10 -10 ------- Run | Yrd Mat Min Combat Hostiles Destroyed 25 | . 20 5 Guns 9 | . 9 . Cannons 8 | . 7 1 AOE 8 | . 4 4 Classes Destroyed 11 | 3 7 1 Worker 5 | 2 3 . Builder 1 | . 1 . Tunneler 2 | 2 . . Hauler 2 | . 2 . Recycler 3 | 1 2 . Mechanic 1 | . 1 . Operator 2 | . 2 . Watcher 3 | . 3 . Swarmer 6 | . 6 . Grunt 14 | . 14 . Assembled 5 | . . 5 Best Kill Streak 4 | 3 3 4 Combat Bots Only 4 | . 3 4 Max Kills in Single Turn 2 | 1 2 2 Gunslinging . | . . . Exploded 2 | . 2 2 Melee . | . . . Uniques/NPCs Destroyed . | . . . Combat | -11 -10 -10 -------- Run | Yrd Mat Min Hostile Shots Fired 110 | . 77 33 Missed 27 | . 21 6 Hits 83 | . 56 27 Melee 7 | . . 7 Projectile 76 | . 56 20 Critical Strikes 3 | . 3 . Damage Taken 1280 | . 737 543 Core 251 | . 115 136 Absorbed by Shields . | . . . Regen/Repaired (Parts) 87 | . 87 . Core Remaining (%) 100 | 100 . . Volleys Fired 115 | 13 90 12 Largest 2 | 2 2 2 Hottest 120 | 60 120 120 Shots Fired 222 | 26 178 18 Gun 172 | 26 146 . Cannon 40 | . 28 12 Launcher 10 | . 4 6 Special . | . . . Kinetic 87 | 13 74 . Thermal 81 | . 69 12 Explosive 10 | . 4 6 Electromagnetic 44 | 13 31 . Robot Hit Streak 12 | 8 12 3 Robot Miss Streak 4 | 3 4 2 Penetration Max . | . . . Secondary Targets 1 | . 1 . Max Gunslinging Chain 1 | . 1 . Shots Hit Robots 121 | 15 98 8 Core Hits 62 | 7 47 8 Critical Kills . | . . . Critical Parts Destroyed . | . . . Critical Strikes 3 | . 3 . Burn 3 | . 3 . Melee Attacks . | . . . Impact . | . . . Slashing . | . . . Piercing . | . . . Sneak Attacks . | . . . Combat Hostiles . | . . . Follow-up Attacks . | . . . Damage Inflicted 2155 | 173 1587 395 Guns 1083 | 173 910 . Cannons 330 | . 226 104 Explosions 739 | . 451 288 Melee . | . . . Ramming 3 | . . 3 Kinetic 368 | 64 304 . Thermal 729 | . 625 104 Explosive 618 | . 330 288 Electromagnetic 437 | 109 328 . Impact . | . . . Slashing . | . . . Piercing . | . . . Highest Corruption 2 | . 2 2 Average Corruption 2 | . 2 2 Corruption Purged . | . . . Corruption Blocked . | . . . Effects 6 | . 5 1 Message Errors 1 | . 1 . Heat Flow Errors 3 | . 2 1 Alerts 2 | . 2 . Overload Shots . | . . . Overflow Damage 39 | . 19 20 Projectiles 12 | . . 12 Explosions 27 | . 19 8 Melee . | . . . Knockbacks . | . . . Impact . | . . . Kinetic . | . . . Secondary . | . . . Self-Inflicted Damage 198 | . 123 75 Shots 6 | . 3 3 Rammed 1 | . . 1 Targets Rammed 1 | . . 1 Kicked . | . . . Crushed . | . . . Highest Temperature 471 | 40 192 471 Average Temperature 64 | 16 51 239 Received Heat Transfer 425 | . 285 140 Effects 1 | . . 1 Energy Bleed 1 | . . 1 Siege Activations . | . . . Martial Activations . | . . . Shielding Activations . | . . . Robots Disrupted . | . . . Combat Hostiles . | . . . Robots Corrupted 1 | . 1 . Combat Hostiles . | . . . Parts Fried 3 | . 3 . Impact Corruptions . | . . . Robots Melted . | . . . Combat Hostiles . | . . . Parts Melted 1 | . 1 . Heat Transferred 1889 | . 1667 222 Parts Sabotaged . | . . . Parts Stolen . | . . . Parts Stripped . | . . . Power Chain Reactions 1 | . 1 . Alert | -11 -10 -10 ------- Run | Yrd Mat Min Maximum Alert Level 1 | . 1 . Low Security (%) 90 | 100 89 100 Level 1 9 | . 10 . Level 2 . | . . . Level 3 . | . . . Level 4 . | . . . Level 5 . | . . . High Security . | . . . Max Security . | . . . Peak Influence 282 | 15 282 106 Initial 106 | . . 106 Average 93 | 1 103 78 Influence Increases 844 | 25 792 27 Destroy 0b10 Robot/C 400 | . 400 . Destroy 0b10 Robot/NC 95 | 25 70 . Destroy Leader 110 | . 110 . Successful Hack 16 | . 16 . Select Force Hacks 60 | . 60 . Disable Machine 60 | . 60 . Destroy Structure 73 | . 46 27 Lose Combat Pursuer 30 | . 30 . Influence Decreases 811 | 25 519 267 Entered New Map 167 | . . 167 Time Decay 574 | 25 499 50 Lost Part 70 | . 20 50 Squads Dispatched 6 | . 6 . Investigation 3 | . 3 . Extermination . | . . . Reinforcement 3 | . 3 . Assault . | . . . Garrison . | . . . Intercept . | . . . Searches Triggered . | . . . Construction Impeded . | . . . Haulers Reinforced . | . . . Active Scanning Responses . | . . . Cargo Convoy Interrupts . | . . . Stealth | -11 -10 -10 --------- Run | Yrd Mat Min Distress Signals 1 | . 1 . Communications Jammed . | . . . Distress Signals . | . . . Times Spotted 59 | . 40 19 Peak Tracking Total 14 | . 3 14 Tactical Retreats 4 | . 2 2 Traps | -11 -10 -10 ------- Run | Yrd Mat Min Traps Triggered 1 | . 1 . Indirectly . | . . . Trap Hack Attempts . | . . . Triggered . | . . . Disarmed . | . . . Reprogrammed . | . . . Reused . | . . . Traps Extracted . | . . . Installed . | . . . Triggered . | . . . Machines | -11 -10 -10 ---------- Run | Yrd Mat Min Machines Disabled 4 | . 4 . Max in Single Turn 2 | . 2 . Machines Repaired . | . . . Machines Dismantled . | . . . Machines Sabotaged . | . . . Overloaded Fab Kills . | . . . Hacking | -11 -10 -10 --------- Run | Yrd Mat Min Machines Accessed 9 | . 9 . Terminals 6 | . 6 . Fabricators . | . . . Repair Stations 1 | . 1 . Recycling Units 2 | . 2 . Scanalyzers . | . . . Garrison Access . | . . . Total Hacks 29 | . 29 . Successful 16 | . 16 . Failed 12 | . 12 . Catastrophic . | . . . Database Lockouts 1 | . 1 . Manual 20 | . 20 . Terminals 21 | . 21 . Fabricators . | . . . Repair Stations 4 | . 4 . Recycling Units 4 | . 4 . Scanalyzers . | . . . Garrison Access . | . . . Terminal Hacks 4 | . 4 . Robot Analysis 2 | . 2 . Prototype ID Bank 1 | . 1 . Locate Traps 1 | . 1 . Fabricator Hacks . | . . . Repair Station Hacks 3 | . 3 . Scan Component 2 | . 2 . Repair 1 | . 1 . Recycling Unit Hacks . | . . . Scanalyzer . | . . . Garrison Access Hacks . | . . . Unauthorized Hacks 9 | . 9 . Terminals 6 | . 6 . Botnet 2 | . 2 . Operators 1 | . 1 . Skim 3 | . 3 . Fabricators . | . . . Repair Stations . | . . . Recycling Units 3 | . 3 . Recyclers 1 | . 1 . Tunnel 2 | . 2 . Scanalyzers . | . . . Garrison Access . | . . . Data Cores Recovered . | . . . Used . | . . . Hacking Detections 8 | . 8 . Full Trace Events . | . . . Feedback Events . | . . . Feedback Blocked . | . . . Robot Schematics Acquired . | . . . Robots Built . | . . . Authchips . | . . . Time . | . . . Total Robot Build Rating . | . . . Part Schematics Acquired . | . . . Parts Built . | . . . Authchips . | . . . Time . | . . . Total Part Build Rating . | . . . Part Studies Acquired . | . . . Parts Repaired 1 | . 1 . Time 26 | . 26 . Parts Recycled . | . . . Recycled Matter . | . . . Retrieved Matter . | . . . Retrieved Components . | . . . Parts Scanalyzed . | . . . Part Schematics Acquired . | . . . Parts Damaged . | . . . Bothacking | -11 -10 -10 ------------ Run | Yrd Mat Min Used RIF Installer . | . . . Robots Hacked . | . . . Non-combat . | . . . Combat . | . . . Robot Hacks Applied . | . . . Relay Couplers Released . | . . . Fabnet Peak Effective % . | . . . Robots Rewired . | . . . Allies Hacked . | . . . Hacks Repelled . | . . . Allies | -11 -10 -10 -------- Run | Yrd Mat Min Total Allies . | . . . Largest Group . | . . . Highest-Rated Group . | . . . Highest-Rated Ally . | . . . Total Orders . | . . . Ally Attacks . | . . . Total Damage . | . . . Kills . | . . . Allies Corrupted . | . . . Allies Melted . | . . . Intel | -11 -10 -10 ------- Run | Yrd Mat Min Active Infowar (turns) 2331 | 9 2237 85 Terrain 2331 | 9 2237 85 Robot Analysis Total 2 | . 2 . Derelict Logs Recovered 1 | . . 1 Drone Launches . | . . . Drone Recoveries . | . . . Exploration | -11 -10 -10 ------------- Run | Yrd Mat Min Turns Passed 2581 | 233 2237 111 Spaces Moved 996 | 117 849 30 Core 3 | 3 . . Treads 855 | 114 711 30 Legs . | . . . Wheels 138 | . 138 . Hover . | . . . Flight . | . . . Fastest Speed 50 | 50 145 240 Average Speed 217 | 157 225 240 Slowest Speed 320 | 160 320 240 Overloaded Moves . | . . . Propulsion Burnouts . | . . . Robots Hopped . | . . . Potential Cave-ins . | . . . Cave-ins Triggered . | . . . Exploration Rate (%) 36 | 7 93 8 Regions Visited 2 Branch Regions 1 Pre-discovered Areas 2 | . 2 . Known Exits Taken . | . . . Unknown Exits Taken 2 | 1 1 . Scrap Searched . | . . . Spaces Dug 23 | . 11 12 Terrain Destroyed 102 | . 45 57 Melee . | . . . Projectile . | . . . AOE 102 | . 45 57 Terrain Rammed . | . . . Walls Destroyed . | . . . Machines Disabled . | . . . Actions | -11 -10 -10 --------- Run | Yrd Mat Min Total 1200 | 139 1011 50 Wait 38 | . 34 4 Move 994 | 116 848 30 Hop . | . . . Pick Up 24 | 2 22 . Fast Attach 10 | 7 3 . Attach 3 | . 2 1 Detach . | . . . Swap 9 | 1 6 2 Drop 6 | . 6 . Fire 115 | 13 90 12 Melee . | . . . Ram . | . . . Kick . | . . . Crush 1 | . . 1 Escape Stasis . | . . . Rewire . | . . . Trap . | . . . Miscellaneous . | . . . Route ------- -11/Scrapyard -10/Materials (discovered 4 exits: [*Mat x3] / [*Min]) -10/Mines History --------- Turn | Location | Event 31 | -11/Scrapyard | Discovered new exit (range 15) 234 | -11/Scrapyard | Entered Materials 302 | -10/Materials | Build established: Mutant 373 | -10/Materials | Central database locked down 435 | -10/Materials | Discovered new exit (range 7) 912 | -10/Materials | Discovered new exit (range 16) 1063 | -10/Materials | Repaired Lgt. Treads 1506 | -10/Materials | Discovered new exit (range 3) 1963 | -10/Materials | Discovered new exit (range 3) 2471 | -10/Materials | Entered Mines 2501 | -10/Mines | Assembled infested the area 2506 | -10/Mines | Assisted by a Guerilla fighting off Assembled 2515 | -10/Mines | Learned Materials non-interactive machine intel 2518 | -10/Mines | Core integrity fell below 50% 2573 | -10/Mines | Core integrity fell below 20% 2582 | -10/Mines | Destroyed by as-52016 with Assembled F-torch Last Messages --------------- 02522_ as-62026 destroyed. 02542_ as-91532 destroyed. 02544_ HV Slug penetrates Wall. 02550_ 3V-K92(h) destroyed. 02553_ Destroyed Asb. Hover Unit. 02553_ as-65118 destroyed. 02556_ Overheating: Energy bleed (-47). 02556_ Ion Engine destroyed. 02565_ Acquired 18 matter. 02566_ Lgt. Treads destroyed. 02569_ System corrupted: Heat flow error (+279). 02574_ Beam Cannon destroyed. 02574_ Destroyed Beam Cannon. 02574_ as-26222 destroyed. 02574_ Heat Sink destroyed. 02576_ as-78180 destroyed. 02578_ as-90376 destroyed. 02578_ as-44796 destroyed. 02580_ Ion Engine destroyed. 02582_ Destroyed Asb. Hover Unit. Map ----- +----------------------------------------------------+ | ????????????????????????????????????????????? | | ????????????????????????????????????????????? | | ????????????????????????????????????????????? | | ????????????????????????????????????????????? | | ????????????????????????????????????????????? | | ????????????????????????????????????????????? | | ????????????????????????????????????????????? | | ????????????????????????????????????????????? | | ????????????????????????????????????????????? | | ????????????????????????????????????????????? | | ????????????????????????? ##? ?????????????? | | ????????????????????????? ????????????????? | | ?????????????????????????% a????????????????? | | ????????????????#????????* ????????????????? | | ????????????????????#???? ???????????????? | | ?????????????????#??????? #???????????????? | | ????????????????????????? #????????? ??????? | | ???????????????????????## ###??? ? ??????? | | ?????????????????????### ####? ??????? | | ?????????????????????# # ???????? | | ??????????????#?????## #????? | | ?????????????????????# a % #????? | | ?????????????????????# = ## #????? | | ?????????????????#????# ??????????#???? | | ?????????????????#????# #????? ?????????? | | ??????????????#???????# @ #???????????????? | | ?????????????#????????## #???????????????? | | ???????????############# % #### ????? | | ???????? a ????? | | ????????????????# ## ????? | | ???????????????????# ## #### ????? | | ????????????? ?????# #??####??????????????? | | ???????????????????# ##???????????????????? | | ??????????????????## #???????????????????? | | ??????????????????# ##?#??#?#???????????? | | ??????????????????# ##???#?#?##??????????? | | ?????????????##???## ##????????#???????????? | | ???????????????????####???#?????????????????? | | ????????????????????#???????????????????????? | | ?????????????????????????????#???#??????????? | | ???????????????????##?#?????????????????????? | | ????????????????????????????????????????????? | | | | | | | | | | | | | | | | | +----------------------------------------------------+ Best States ------------- Heat Dissipation 35 Energy Generation 10 Energy Capacity 250 Matter Stores 300 Matter Capacity 300 Sight Range 16 Terrain Scan Range 16 Terrain Scan Density 10 Evasion (%) 40 Recoil Reduction 2 Item Schematics ----------------- None Robot Schematics ------------------ None Fabricated ------------ Nothing Repaired ---------- Lgt. Treads | 37% | -10/Materials Studied --------- None Alien Tech Used ----------------- None Achievements -------------- None Challenges ------------ None Game ------ Seed ActuatorJammingCanceller Manual? 0 Play Time 00:11:39 Cumulative 710.3 hours Start 2026.07.10 @ 10:33:49 End 2026.07.10 @ 10:44:08 Sessions 1 Manual Loads 0 Difficulty Rogue Special Mode None Game No. 349 Rogue 349 Adventurer 0 Explorer 0 Win Type - Total 7 Types 3/0/2/1/0/0/0/0/0/1 Lore% 87 Gallery% 76 Achievement% 59 Wizard Run 0 Options --------- Layout 2 ASCII 0 Keyboard 1 Movement Vi Keybinds 0 Fullscreen 1 Font 16/Proggy Map View 55x47 Zoom Use 0% Tactical HUD 1 Map Filters NONE Filters NONE Steam 0 RUN: f34dd66d-31e6-47a7-8ae2-3ae575b57bc7